[Event "Skalica Open 2019"]
[Site "Skalica"]
[Date "2019.08.28"]
[Round "5.20"]
[White "Lhotska, Anna"]
[Black "Chan, Naruna"]
[Result "1-0"]
[ECO "A10"]
[WhiteElo "1966"]
[BlackElo "1950"]
[Annotator "NA"]
[PlyCount "83"]
[EventDate "2019.08.25"]
[EventType "swiss"]
[EventCountry "SVK"]
[SourceTitle "playchess.com"]
[Source "ChessBase"]
[SourceQuality "1"]
[TimeControl "40/5400+30:1800+30"]

1. c4 {[%emt 0:00:00]} f5 {[%emt 0:00:00]} 2. Nc3 {[%emt 0:00:00]} d6 {[%emt 0:00:03]} 3. Nf3 {[%emt 0:00:50]} e5 {[%emt 0:00:16]} 4. e3 {[%emt 0:00:10]} Nf6 {[%emt 0:00:12]} 5. d4 {[%emt 0:00:23]} e4 {[%emt 0:01:33]} 6. Nd2 {[%emt 0:00:10]} c6 {[%emt 0:00:50]} 7. d5 {[%emt 0:04:33]} Nbd7 {[%emt 0:04:09]} 8. Be2 {[%emt 0:07:57]} Be7 {[%emt 0:01:09]} 9. b4 {[%emt 0:09:43]} O-O {[%emt 0:02:37]} 10. Nb3 {[%emt 0:03:04]} Ne5 {[%emt 0:02:34]} 11. Bb2 {[%emt 0:05:09]} b6 {[%emt 0:09:34]} 12. dxc6 {[%emt 0:11:35]} Nxc6 {[%emt 0:02:21]} 13. Nd5 {[%emt 0:00:41]} Be6 {[%emt 0:03:55]} 14. a3 {[%emt 0:05:09]} Bf7 {[%emt 0:04:06]} 15. Nd4 {[%emt 0:11:10]} Nxd4 {[%emt 0:02:19]} 16. Qxd4 {[%emt 0:00:07]} Bxd5 {[%emt 0:01:22]} 17. cxd5 {[%emt 0:00:07]} Ne8 {[%emt 0:02:38]} 18. O-O {[%emt 0:01:59]} Bf6 {[%emt 0:01:23]} 19. Qd2 {[%emt 0:00:11]} Bxb2 {[%emt 0:01:09]} 20. Qxb2 {[%emt 0:00:07]} Nf6 {[%emt 0:00:55]} 21. Rac1 {[%emt 0:03:19]} Rc8 {[%emt 0:01:45]} 22. Rc6 {[%emt 0:04:16]} Rxc6 {[%emt 0:08:17]} 23. dxc6 {[%emt 0:00:07]} Qc7 {[%emt 0:00:06]} 24. b5 {[%emt 0:01:10]} d5 {[%emt 0:00:11]} 25. Rd1 {[%emt 0:02:52]} Rd8 {[%emt 0:01:37]} 26. Rd4 {[%emt 0:04:21]} h6 {[%emt 0:01:41]} 27. a4 {[%emt 0:02:05]} a5 {[%emt 0:03:06]} 28. bxa6 {[%emt 0:04:16]} Qxc6 {[%emt 0:00:49]} 29. Rb4 {[%emt 0:00:21]} Kh7 {[%emt 0:05:34]} 30. h3 {[%emt 0:04:02]} d4 {[%emt 0:08:21]} 31. Rxd4 {[%emt 0:04:52]} Ra8 {[%emt 0:03:21]} 32. Qb5 {[%emt 0:01:55]} Qc1+ {[%emt 0:01:56]} 33. Rd1 {[%emt 0:01:04]} Qc5 {[%emt 0:00:14]} 34. Qxc5 {[%emt 0:01:33]} bxc5 {[%emt 0:00:01]} 35. Bb5 {[%emt 0:00:50]} Ra7 {[%emt 0:00:20]} 36. Rd6 {[%emt 0:00:30]} Ng8 {[%emt 0:02:48]} 37. Rb6 {[%emt 0:00:18]} Nf6 {[%emt 0:02:35]} 38. Rb7 {[%emt 0:00:39]} Ra8 {[%emt 0:00:39]} 39. a7 {[%emt 0:00:35]} Nd5 {[%emt 0:00:09]} 40. Bc6 {[%emt 0:00:28]} Nb4 {[%emt 0:00:13]} 41. Rxg7+ {[%emt 0:30:27]} Kxg7 {[%emt 0:30:23]} 42. Bxa8 {[%emt 0:00:06]} 1-0

[Event "Skalica Open 2019"]
[Site "Skalica"]
[Date "2019.08.28"]
[Round "5.21"]
[White "Krakovsky, Peter"]
[Black "Hrubsa, Marian"]
[Result "1/2-1/2"]
[ECO "A20"]
[WhiteElo "1000"]
[BlackElo "1888"]
[Annotator "NA"]
[PlyCount "35"]
[EventDate "2019.08.25"]
[EventType "swiss"]
[EventCountry "SVK"]
[SourceTitle "playchess.com"]
[Source "ChessBase"]
[SourceQuality "1"]
[TimeControl "40/5400+30:1800+30"]

1. c4 {[%emt 0:00:00]} e5 {[%emt 0:00:00]} 2. g3 {[%emt 0:00:00]} Nf6 {[%emt 0:00:00]} 3. Bg2 {[%emt 0:00:00]} Bc5 {[%emt 0:00:00]} 4. d3 {[%emt 0:00:00]} Nc6 {[%emt 0:00:27]} 5. Nf3 {[%emt 0:00:04]} O-O {[%emt 0:00:43]} 6. O-O {[%emt 0:00:03]} h6 {[%emt 0:00:21]} 7. e4 {[%emt 0:00:12]} d6 {[%emt 0:00:25]} 8. Nc3 {[%emt 0:00:12]} Be6 {[%emt 0:01:42]} 9. a3 {[%emt 0:00:43]} a5 {[%emt 0:02:04]} 10. Nd5 {[%emt 0:00:41]} Bg4 {[%emt 0:04:26]} 11. h3 {[%emt 0:00:53]} Be6 {[%emt 0:02:10]} 12. Bd2 {[%emt 0:00:40]} Nd4 {[%emt 0:04:51]} 13. b4 {[%emt 0:03:16]} Nxf3+ {[%emt 0:01:08]} 14. Qxf3 {[%emt 0:00:40]} Bd4 {[%emt 0:00:20]} 15. Nxf6+ {[%emt 0:00:50]} Qxf6 {[%emt 0:03:19]} 16. Qxf6 {[%emt 0:01:02]} gxf6 {[%emt 0:00:05]} 17. Rab1 {[%emt 0:00:34]} axb4 {[%emt 0:02:29]} 18. Ra1 1/2-1/2

[Event "Skalica Open 2019"]
[Site "Skalica"]
[Date "2019.08.28"]
[Round "5.23"]
[White "Palka, Miroslav"]
[Black "Londin, Lukas Vojtech"]
[Result "1-0"]
[ECO "A22"]
[WhiteElo "1869"]
[BlackElo "1415"]
[Annotator "NA"]
[PlyCount "65"]
[EventDate "2019.08.25"]
[EventType "swiss"]
[EventCountry "SVK"]
[SourceTitle "playchess.com"]
[Source "ChessBase"]
[SourceQuality "1"]
[TimeControl "40/5400+30:1800+30"]

1. c4 {[%emt 0:00:00]} e5 {[%emt 0:00:00]} 2. Nc3 {[%emt 0:00:00]} Nf6 {[%emt 0:00:00]} 3. g3 {[%emt 0:00:14]} Bb4 {[%emt 0:00:00]} 4. Bg2 {[%emt 0:00:18]} Bxc3 {[%emt 0:00:04]} 5. bxc3 {[%emt 0:00:22]} d6 {[%emt 0:00:22]} 6. d4 {[%emt 0:00:31]} exd4 {[%emt 0:01:10]} 7. cxd4 {[%emt 0:00:15]} h6 {[%emt 0:00:15]} 8. Nf3 {[%emt 0:00:16]} O-O {[%emt 0:00:14]} 9. O-O {[%emt 0:00:04]} Nc6 {[%emt 0:00:39]} 10. Qc2 {[%emt 0:02:38]} Re8 {[%emt 0:02:31]} 11. e3 {[%emt 0:01:22]} Bg4 {[%emt 0:10:03]} 12. d5 {[%emt 0:01:26]} Nb8 {[%emt 0:05:05]} 13. Bb2 {[%emt 0:01:07]} Nbd7 {[%emt 0:01:40]} 14. Bd4 {[%emt 0:02:49]} b6 {[%emt 0:06:22]} 15. Qb2 {[%emt 0:02:39]} Kh7 {[%emt 0:03:29]} 16. Rfe1 {[%emt 0:02:18]} Bf5 {[%emt 0:01:02]} 17. Nh4 {[%emt 0:01:27]} Bg6 {[%emt 0:01:38]} 18. Nxg6 {[%emt 0:00:16]} fxg6 {[%emt 0:00:05]} 19. Qc2 {[%emt 0:01:14]} Ne5 {[%emt 0:00:31]} 20. f4 {[%emt 0:03:36]} Ned7 {[%emt 0:01:05]} 21. e4 {[%emt 0:01:25]} Nc5 {[%emt 0:00:34]} 22. e5 {[%emt 0:02:02]} Nfd7 {[%emt 0:00:47]} 23. e6 {[%emt 0:02:36]} Nf6 {[%emt 0:00:06]} 24. Bxc5 {[%emt 0:00:48]} bxc5 {[%emt 0:00:09]} 25. Bf1 {[%emt 0:01:23]} Ng8 {[%emt 0:02:44]} 26. f5 {[%emt 0:01:10]} gxf5 {[%emt 0:01:02]} 27. Qxf5+ {[%emt 0:00:10]} Kh8 {[%emt 0:00:02]} 28. Bd3 {[%emt 0:00:33]} Nf6 {[%emt 0:00:09]} 29. Rf1 {[%emt 0:01:27]} Kg8 {[%emt 0:00:55]} 30. Qg6 {[%emt 0:01:06]} Qe7 {[%emt 0:00:11]} 31. Rxf6 {[%emt 0:03:33]} Qxf6 {[%emt 0:00:31]} 32. Qh7+ {[%emt 0:00:05]} Kf8 {[%emt 0:00:04]} 33. Rf1 {[%emt 0:00:12]} 1-0

[Event "Skalica Open 2019"]
[Site "Skalica"]
[Date "2019.08.28"]
[Round "5.24"]
[White "Petkevich, Denis"]
[Black "Londin, Martin"]
[Result "1-0"]
[ECO "A10"]
[WhiteElo "1863"]
[BlackElo "1930"]
[Annotator "NA"]
[PlyCount "61"]
[EventDate "2019.08.25"]
[EventType "swiss"]
[EventCountry "SVK"]
[SourceTitle "playchess.com"]
[Source "ChessBase"]
[SourceQuality "1"]
[TimeControl "40/5400+30:1800+30"]

1. c4 {[%emt 0:00:00]} b6 {[%emt 0:00:00]} 2. b4 {[%emt 0:00:00]} e6 {[%emt 0:00:00]} 3. Bb2 {[%emt 0:00:00]} Nf6 {[%emt 0:00:04]} 4. a3 {[%emt 0:00:06]} c5 {[%emt 0:00:15]} 5. b5 {[%emt 0:00:24]} Bb7 {[%emt 0:00:17]} 6. e3 {[%emt 0:00:09]} d5 {[%emt 0:00:20]} 7. Nf3 {[%emt 0:00:08]} Be7 {[%emt 0:00:14]} 8. cxd5 Bxd5 {[%emt 0:00:23]} 9. Nc3 {[%emt 0:01:16]} O-O {[%emt 0:00:25]} 10. Nxd5 {[%emt 0:00:06]} Nxd5 {[%emt 0:01:04]} 11. Qc2 {[%emt 0:01:24]} Bf6 {[%emt 0:00:46]} 12. d4 {[%emt 0:00:17]} cxd4 {[%emt 0:02:02]} 13. Nxd4 {[%emt 0:00:09]} Nd7 {[%emt 0:00:36]} 14. Rd1 {[%emt 0:01:37]} Rc8 {[%emt 0:01:41]} 15. Nc6 {[%emt 0:02:45]} Qc7 {[%emt 0:01:46]} 16. Bd3 {[%emt 0:01:37]} h6 {[%emt 0:01:32]} 17. O-O {[%emt 0:00:46]} Ne5 18. Bxe5 {[%emt 0:02:31]} Bxe5 {[%emt 0:01:48]} 19. g3 {[%emt 0:00:05]} Ne7 {[%emt 0:01:21]} 20. Nxe5 {[%emt 0:02:26]} Qxe5 {[%emt 0:00:33]} 21. Qa4 {[%emt 0:01:08]} Rc7 {[%emt 0:01:17]} 22. e4 {[%emt 0:02:51]} Rfc8 {[%emt 0:01:27]} 23. f4 {[%emt 0:01:58]} Qc5+ {[%emt 0:00:43]} 24. Kg2 {[%emt 0:00:04]} f5 {[%emt 0:01:20]} 25. Qb3 {[%emt 0:00:36]} Kf7 {[%emt 0:01:11]} 26. Rc1 {[%emt 0:01:55]} Qd6 {[%emt 0:01:37]} 27. Rxc7 {[%emt 0:00:07]} Rxc7 {[%emt 0:00:56]} 28. exf5 {[%emt 0:00:40]} Nd5 {[%emt 0:02:06]} 29. Be4 {[%emt 0:01:38]} Rc3 {[%emt 0:02:20]} 30. fxe6+ {[%emt 0:01:04]} Qxe6 {[%emt 0:01:57]} 31. Qxd5 {[%emt 0:00:18]} 1-0

[Event "Skalica Open 2019"]
[Site "Skalica"]
[Date "2019.08.29"]
[Round "6.11"]
[White "Matejovic, Juraj"]
[Black "Hrbek, Stepan"]
[Result "1-0"]
[ECO "B67"]
[WhiteElo "2237"]
[BlackElo "2066"]
[Annotator "ChessBase"]
[PlyCount "65"]
[EventDate "2019.08.25"]
[EventType "swiss"]
[EventCountry "SVK"]
[SourceTitle "playchess.com"]
[Source "ChessBase"]
[SourceQuality "1"]
[TimeControl "40/5400+30:1800+30"]

1. e4 {[%emt 0:00:00]} c5 {[%emt 0:00:00]} 2. Nf3 {[%emt 0:00:00]} d6 {[%emt 0:02:25]} 3. d4 {[%emt 0:01:51]} cxd4 {[%emt 0:00:10]} 4. Nxd4 {[%emt 0:00:10]} Nf6 {[%emt 0:00:10]} 5. Nc3 {[%emt 0:00:11]} Nc6 {[%emt 0:03:48]} 6. Bg5 {[%emt 0:00:22]} e6 {[%emt 0:00:11]} 7. Qd2 {[%emt 0:07:23]} a6 {[%emt 0:00:19]} 8. O-O-O {[%emt 0:05:28]} Bd7 {[%emt 0:01:02]} 9. f4 {[%emt 0:12:03]} b5 {[%emt 0:00:46]} 10. a3 {[%emt 0:26:19]} Rb8 {[%emt 0:15:20]} 11. e5 {[%emt 0:08:08]} dxe5 {[%emt 0:00:34]} 12. fxe5 {[%emt 0:00:08]} Nxe5 {[%emt 0:00:29]} 13. Bf4 {[%emt 0:00:23]} Ng6 {[%emt 0:00:14]} 14. Bxb8 {[%emt 0:01:10]} Qxb8 {[%emt 0:00:20]} 15. Be2 {[%emt 0:05:56]} e5 {[%emt 0:32:47]} 16. Nb3 {[%emt 0:03:13]} Be6 {[%emt 0:00:43]} 17. Bf3 {[%emt 0:00:55]} Be7 {[%emt 0:03:00]} 18. Bc6+ {[%emt 0:00:11]} Kf8 {[%emt 0:00:03]} 19. Rhe1 {[%emt 0:03:08]} Qc8 {[%emt 0:09:03]} 20. Bf3 {[%emt 0:02:30]} Nd7 {[%emt 0:03:05]} 21. Nd5 {[%emt 0:01:24]} f6 {[%emt 0:02:45]} 22. Nxe7 {[%emt 0:00:52]} Nxe7 {[%emt 0:01:43]} 23. Qb4 {[%emt 0:02:14]} Kf7 {[%emt 0:18:11]} 24. Rd6 {[%emt 0:01:52]} Qc7 {[%emt 0:02:30]} 25. Nd4 {[%emt 0:04:03]} Bc4 {[%emt 0:01:45]} 26. Nc6 {[%emt 0:02:49]} Nf5 {[%emt 0:00:46]} 27. Rd2 {[%emt 0:00:31]} Nb6 {[%emt 0:00:47]} 28. g4 {[%emt 0:04:54]} Nh4 {[%emt 0:00:10]} 29. Be4 {[%emt 0:00:21]} Ng6 {[%emt 0:00:32]} 30. Qc5 {[%emt 0:01:04]} Nf4 {[%emt 0:00:28]} 31. Nd8+ {[%emt 0:00:55]} Qxd8 {[%emt 0:00:05]} 32. Rxd8 {[%emt 0:00:09]} Rxd8 {[%emt 0:00:05]} 33. Qxb6 {[%emt 0:00:19]} 1-0

[Event "Skalica Open 2019"]
[Site "Skalica"]
[Date "2019.08.29"]
[Round "6.12"]
[White "Bochnicka, Vladimir"]
[Black "Khmelev, Mikhail"]
[Result "1/2-1/2"]
[ECO "B48"]
[WhiteElo "2193"]
[BlackElo "2021"]
[Annotator "ChessBase"]
[PlyCount "59"]
[EventDate "2019.08.25"]
[EventType "swiss"]
[EventCountry "SVK"]
[SourceTitle "playchess.com"]
[Source "ChessBase"]
[SourceQuality "1"]
[TimeControl "40/5400+30:1800+30"]

1. e4 {[%emt 0:00:00]} c5 {[%emt 0:00:00]} 2. Nf3 {[%emt 0:00:00]} Nc6 {[%emt 0:00:00]} 3. Nc3 {[%emt 0:00:00]} e6 {[%emt 0:00:51]} 4. d4 {[%emt 0:00:00]} cxd4 {[%emt 0:00:07]} 5. Nxd4 {[%emt 0:00:05]} Qc7 {[%emt 0:00:05]} 6. Be3 {[%emt 0:00:46]} a6 {[%emt 0:00:47]} 7. Qf3 {[%emt 0:03:39]} Nf6 {[%emt 0:07:46]} 8. O-O-O {[%emt 0:00:35]} Bb4 {[%emt 0:08:44]} 9. Nxc6 {[%emt 0:01:28]} Bxc3 {[%emt 0:00:40]} 10. bxc3 {[%emt 0:04:55]} Qxc6 {[%emt 0:00:06]} 11. Bd4 {[%emt 0:11:59]} Qxe4 {[%emt 0:00:09]} 12. Qxe4 {[%emt 0:16:31]} Nxe4 {[%emt 0:00:06]} 13. Bxg7 {[%emt 0:00:10]} Rg8 {[%emt 0:00:01]} 14. Bd4 {[%emt 0:00:13]} d5 {[%emt 0:05:08]} 15. f3 {[%emt 0:07:01]} Nd6 {[%emt 0:00:14]} 16. Bd3 {[%emt 0:00:29]} Nf5 {[%emt 0:03:24]} 17. Be5 {[%emt 0:05:01]} Rxg2 {[%emt 0:01:57]} 18. Bxf5 {[%emt 0:16:55]} exf5 {[%emt 0:00:23]} 19. Rd4 {[%emt 0:02:08]} Re2 {[%emt 0:08:59]} 20. Bg3 {[%emt 0:01:00]} Be6 {[%emt 0:00:07]} 21. Rh4 {[%emt 0:09:30]} O-O-O {[%emt 0:00:12]} 22. Re1 {[%emt 0:04:13]} Rxe1+ {[%emt 0:00:08]} 23. Bxe1 {[%emt 0:01:07]} Rh8 {[%emt 0:00:09]} 24. Rh6 {[%emt 0:00:23]} f4 {[%emt 0:00:24]} 25. Bd2 {[%emt 0:01:48]} Bf5 {[%emt 0:00:29]} 26. Rh5 {[%emt 0:01:51]} Bg6 {[%emt 0:01:59]} 27. Rxd5 {[%emt 0:00:23]} Rd8 {[%emt 0:00:09]} 28. c4 {[%emt 0:01:24]} Rxd5 {[%emt 0:00:08]} 29. cxd5 {[%emt 0:00:01]} Bh5 {[%emt 0:00:07]} 30. Bxf4 {[%emt 0:00:41]} 1/2-1/2

[Event "Skalica Open 2019"]
[Site "Skalica"]
[Date "2019.08.29"]
[Round "6.13"]
[White "Skalsky, Alexandr"]
[Black "Bilczewski, Kacper"]
[Result "1/2-1/2"]
[ECO "C11"]
[WhiteElo "2128"]
[BlackElo "2116"]
[Annotator "ChessBase"]
[PlyCount "99"]
[EventDate "2019.08.25"]
[EventType "swiss"]
[EventCountry "SVK"]
[SourceTitle "playchess.com"]
[Source "ChessBase"]
[SourceQuality "1"]
[TimeControl "40/5400+30:1800+30"]

1. e4 {[%emt 0:00:00]} e6 {[%emt 0:00:00]} 2. d4 {[%emt 0:00:00]} d5 {[%emt 0:00:00]} 3. Nc3 {[%emt 0:00:00]} Nf6 {[%emt 0:00:06]} 4. e5 {[%emt 0:00:00]} Nfd7 {[%emt 0:00:04]} 5. Nce2 {[%emt 0:00:34]} c5 {[%emt 0:00:19]} 6. c3 {[%emt 0:00:22]} Nc6 {[%emt 0:00:30]} 7. Nf3 {[%emt 0:00:04]} Be7 {[%emt 0:11:46]} 8. a3 {[%emt 0:00:58]} c4 {[%emt 0:10:07]} 9. g3 {[%emt 0:24:43]} Na5 {[%emt 0:02:50]} 10. Rb1 {[%emt 0:01:50]} Nb3 {[%emt 0:01:41]} 11. Be3 {[%emt 0:00:45]} b5 {[%emt 0:00:14]} 12. Nd2 {[%emt 0:04:28]} Nxd2 {[%emt 0:01:06]} 13. Bxd2 {[%emt 0:05:24]} a5 {[%emt 0:00:16]} 14. f4 {[%emt 0:07:24]} f5 {[%emt 0:00:39]} 15. g4 g6 {[%emt 0:17:49]} 16. gxf5 {[%emt 0:23:05]} exf5 {[%emt 0:02:00]} 17. Bg2 {[%emt 0:02:19]} Nf8 {[%emt 0:00:16]} 18. O-O {[%emt 0:04:31]} a4 {[%emt 0:01:58]} 19. Ng3 {[%emt 0:02:58]} Qd7 {[%emt 0:06:10]} 20. Re1 {[%emt 0:03:22]} Qe6 {[%emt 0:03:51]} 21. Nf1 {[%emt 0:00:48]} Bb7 {[%emt 0:00:05]} 22. Ne3 {[%emt 0:02:18]} O-O-O {[%emt 0:01:08]} 23. Rf1 {[%emt 0:01:04]} Qd7 {[%emt 0:00:27]} 24. Qf3 {[%emt 0:03:35]} Ne6 {[%emt 0:00:06]} 25. Qh3 {[%emt 0:00:58]} Rdf8 {[%emt 0:03:13]} 26. Rf3 {[%emt 0:06:44]} Kb8 {[%emt 0:05:39]} 27. Nc2 {[%emt 0:01:57]} Bd8 {[%emt 0:04:41]} 28. Qg3 {[%emt 0:00:28]} Rhg8 {[%emt 0:00:47]} 29. Qf2 {[%emt 0:01:13]} Be7 {[%emt 0:02:33]} 30. Kf1 {[%emt 0:00:17]} h6 {[%emt 0:02:56]} 31. Ke2 {[%emt 0:00:44]} g5 {[%emt 0:04:50]} 32. Rf1 {[%emt 0:00:05]} g4 {[%emt 0:01:00]} 33. Re3 {[%emt 0:00:05]} Qd8 {[%emt 0:01:17]} 34. Kd1 {[%emt 0:00:37]} h5 {[%emt 0:02:08]} 35. Be1 {[%emt 0:01:16]} Nxf4 {[%emt 0:07:34]} 36. Qxf4 {[%emt 0:00:08]} Bg5 {[%emt 0:00:04]} 37. Qf2 {[%emt 0:00:47]} f4 {[%emt 0:00:04]} 38. Rf3 {[%emt 0:01:08]} Qd7 {[%emt 0:01:46]} 39. Qe2 {[%emt 0:00:53]} Qf5 {[%emt 0:05:06]} 40. R3f2 {[%emt 0:01:19]} Qg6 {[%emt 0:02:10]} 41. Bd2 {[%emt 0:11:34]} f3 {[%emt 0:05:24]} 42. Bxf3 {[%emt 0:01:56]} gxf3 {[%emt 0:00:06]} 43. Rxf3 {[%emt 0:00:06]} Rxf3 {[%emt 0:00:06]} 44. Qxf3 {[%emt 0:02:33]} Bc8 {[%emt 0:00:29]} 45. h3 {[%emt 0:09:06]} Bxd2 {[%emt 0:04:28]} 46. Kxd2 {[%emt 0:00:54]} Qg2+ {[%emt 0:00:04]} 47. Rf2 {[%emt 0:00:42]} Qxf3 {[%emt 0:02:35]} 48. Rxf3 {[%emt 0:00:01]} Rg2+ {[%emt 0:00:06]} 49. Kd1 {[%emt 0:01:21]} Be6 {[%emt 0:01:18]} 50. Rf6 {[%emt 0:04:05]} 1/2-1/2

[Event "Skalica Open 2019"]
[Site "Skalica"]
[Date "2019.08.29"]
[Round "6.14"]
[White "Kalisky, Vladimir"]
[Black "Havelka, Ondrej"]
[Result "1-0"]
[ECO "A00"]
[WhiteElo "2179"]
[BlackElo "2112"]
[Annotator "ChessBase"]
[PlyCount "127"]
[EventDate "2019.08.25"]
[EventType "swiss"]
[EventCountry "SVK"]
[SourceTitle "playchess.com"]
[Source "ChessBase"]
[SourceQuality "1"]
[TimeControl "40/5400+30:1800+30"]

1. g3 {[%emt 0:00:00]} d5 {[%emt 0:00:00]} 2. Bg2 {[%emt 0:00:00]} e5 {[%emt 0:00:19]} 3. d3 {[%emt 0:00:00]} Nf6 {[%emt 0:01:48]} 4. Nf3 {[%emt 0:00:05]} Nc6 {[%emt 0:01:18]} 5. O-O {[%emt 0:00:20]} Bg4 {[%emt 0:09:44]} 6. c4 {[%emt 0:04:25]} dxc4 {[%emt 0:14:34]} 7. Qa4 {[%emt 0:16:24]} Qd7 {[%emt 0:05:56]} 8. Qxc4 {[%emt 0:16:10]} Bd6 {[%emt 0:11:48]} 9. Bg5 {[%emt 0:02:29]} Bh3 {[%emt 0:05:34]} 10. Nc3 {[%emt 0:00:34]} Bxg2 {[%emt 0:11:01]} 11. Kxg2 {[%emt 0:00:03]} O-O-O {[%emt 0:01:51]} 12. Rfc1 {[%emt 0:01:39]} h6 {[%emt 0:01:09]} 13. Bxf6 {[%emt 0:04:27]} gxf6 {[%emt 0:00:02]} 14. Rab1 {[%emt 0:00:54]} Qe6 {[%emt 0:03:03]} 15. Qa4 {[%emt 0:08:52]} f5 {[%emt 0:02:32]} 16. e4 {[%emt 0:14:48]} Bc5 {[%emt 0:03:59]} 17. Nd5 {[%emt 0:01:21]} Rxd5 {[%emt 0:00:49]} 18. exd5 {[%emt 0:00:09]} Qxd5 {[%emt 0:00:01]} 19. Qc4 {[%emt 0:00:45]} Qxc4 {[%emt 0:00:34]} 20. Rxc4 {[%emt 0:00:53]} Bb6 {[%emt 0:00:23]} 21. Rxc6 {[%emt 0:01:49]} bxc6 {[%emt 0:00:02]} 22. Nxe5 {[%emt 0:00:12]} Re8 {[%emt 0:00:49]} 23. d4 {[%emt 0:07:25]} Bxd4 {[%emt 0:01:04]} 24. Nxc6 {[%emt 0:00:02]} Bb6 {[%emt 0:00:24]} 25. Kf3 {[%emt 0:00:10]} a5 {[%emt 0:04:13]} 26. Rd1 {[%emt 0:00:55]} Re6 {[%emt 0:03:32]} 27. Nd8 {[%emt 0:01:03]} Re7 {[%emt 0:00:31]} 28. Rd5 {[%emt 0:03:07]} f6 {[%emt 0:01:52]} 29. Nc6 {[%emt 0:01:33]} Re1 {[%emt 0:01:45]} 30. b3 {[%emt 0:02:17]} h5 {[%emt 0:05:57]} 31. h4 {[%emt 0:01:58]} Rf1 {[%emt 0:02:26]} 32. Ne7+ {[%emt 0:01:01]} Kb7 {[%emt 0:00:05]} 33. Rd2 {[%emt 0:00:08]} f4 {[%emt 0:00:28]} 34. gxf4 {[%emt 0:00:22]} Rh1 {[%emt 0:00:28]} 35. Nd5 {[%emt 0:04:43]} Rxh4 {[%emt 0:01:06]} 36. Nxf6 {[%emt 0:00:13]} Rh1 {[%emt 0:00:13]} 37. f5 {[%emt 0:00:57]} h4 {[%emt 0:00:31]} 38. Nd5 {[%emt 0:01:56]} Bc5 {[%emt 0:00:29]} 39. Kg2 Re1 {[%emt 0:00:21]} 40. f6 {[%emt 0:01:51]} Re5 {[%emt 0:01:06]} 41. Ne3 {[%emt 0:32:55]} Bxe3 {[%emt 0:36:05]} 42. fxe3 {[%emt 0:00:12]} Rf5 {[%emt 0:00:01]} 43. Rf2 {[%emt 0:00:00]} h3+ {[%emt 0:00:00]} 44. Kg3 {[%emt 0:00:00]} h2 {[%emt 0:00:00]} 45. Rxh2 {[%emt 0:00:00]} Rxf6 {[%emt 0:00:00]} 46. Rh5 {[%emt 0:00:00]} Kb6 {[%emt 0:00:00]} 47. e4 {[%emt 0:00:00]} c5 {[%emt 0:00:00]} 48. e5 {[%emt 0:00:00]} Rf1 {[%emt 0:00:00]} 49. Rh2 {[%emt 0:00:00]} Re1 {[%emt 0:00:00]} 50. Kf4 {[%emt 0:00:00]} Kb5 {[%emt 0:00:00]} 51. Rc2 {[%emt 0:00:00]} Kb4 {[%emt 0:00:00]} 52. Rc4+ {[%emt 0:00:00]} Kb5 {[%emt 0:00:00]} 53. Re4 {[%emt 0:00:00]} Rf1+ {[%emt 0:00:00]} 54. Kg5 {[%emt 0:00:00]} Kc6 {[%emt 0:00:00]} 55. e6 {[%emt 0:00:00]} Rg1+ {[%emt 0:00:00]} 56. Kf6 {[%emt 0:00:00]} Rf1+ {[%emt 0:00:00]} 57. Ke7 {[%emt 0:00:00]} Rf2 {[%emt 0:00:00]} 58. Ra4 {[%emt 0:00:00]} Kb6 {[%emt 0:00:00]} 59. Ke8 {[%emt 0:00:00]} Re2 {[%emt 0:00:00]} 60. e7 {[%emt 0:00:00]} Rf2 {[%emt 0:00:00]} 61. Rc4 {[%emt 0:00:00]} Rxa2 {[%emt 0:00:00]} 62. Rf4 {[%emt 0:00:00]} a4 {[%emt 0:00:00]} 63. Kf7 {[%emt 0:00:00]} axb3 {[%emt 0:00:00]} 64. e8=Q {[%emt 0:00:00]} 1-0